Cogmind - Beta 13 @@@ ROGUE MODE // 2024.04.01 @ 17:45:54 Player: SuperDrops Result: Destroyed by Y-54 Guardian with Flak Gun Performance ------------- Evolutions (0) 0 Regions Visited (4) 800 Robots Destroyed (30) 150 Value Destroyed (572) 572 Prototype IDs (0) 0 Alien Tech Used (0) 0 Bonus (-15) -15 TOTAL SCORE: 1507 Bonus ------- Friendly Fire -15 Cogmind --------- Core Integrity 0/250 Matter 247/300 Energy 100/100 System Corruption 2% Temperature Cool (6) Movement Core (1400) Ox27 Location -7/Recycling Parts ------- > --- POWER (1) -------- (None) > --- PROPULSION (2) --- (None) > --- UTILITY (2) ------ Huge Storage Unit Signal Interpreter > --- WEAPON (2) ------- Hammer > --- INVENTORY (25) --- Light Treads Light Treads Light Treads Aluminum Leg Aluminum Leg Wheel Compact Wheel Large Storage Unit Small Matter Pod (50) Sensor Array Signal Interpreter Signal Interpreter Scrap Shield Mining Laser Mining Laser Mining Laser Welding Torch Peak State ------------ > --- POWER ------------ (None) > --- PROPULSION ------- Light Treads Light Treads > --- UTILITY ---------- Huge Storage Unit Signal Interpreter > --- WEAPON ----------- Assault Cannon Makeshift Axe > --- INVENTORY -------- Ion Engine Light Treads Light Treads Light Treads Aluminum Leg Aluminum Leg Wheel Compact Wheel Large Storage Unit Small Matter Pod Sensor Array Signal Interpreter Signal Interpreter Scrap Shield Grenade Launcher Mining Laser Mining Laser Mining Laser Welding Torch Hammer [Rating: 13] Favorites ----------- Power Light Ion Engine Engine Light Ion Engine Propulsion Light Treads Treads Light Treads Utility Signal Interpreter Storage Huge Storage Unit Processor Signal Interpreter Weapon Grenade Launcher Energy Gun EM Pulse Gun Ballistic Gun Light Assault Rifle Ballistic Cannon Assault Cannon Launcher Grenade Launcher Impact Weapon Hammer Slashing Weapon Makeshift Axe Build | -11 -10 -10 -10 -7 ------- Run | Yrd Mat Min Sub Rec Slots Evolved . | . . . . . Power . | . . . . . Propulsion . | . . . . . Utility . | . . . . . Weapon . | . . . . . Parts Attached 18 | 6 4 3 3 2 Power 3 | 1 . . 1 1 Engine 3 | 1 . . 1 1 Core . | . . . . . Reactor . | . . . . . Propulsion 4 | 2 . 2 . . Treads 4 | 2 . 2 . . Leg . | . . . . . Wheel . | . . . . . Hover . | . . . . . Flight . | . . . . . Utility 4 | 1 3 . . . Device . | . . . . . Storage 3 | 1 2 . . . Processor 1 | . 1 . . . Hackware . | . . . . . Protection . | . . . . . Artifact . | . . . . . Weapon 7 | 2 1 1 2 1 Energy Gun 1 | 1 . . . . Energy Cannon . | . . . . . Ballistic Gun 1 | 1 . . . . Ballistic Cannon 1 | . . 1 . . Launcher 2 | . 1 . 1 . Special Weapon . | . . . . . Impact Weapon 1 | . . . . 1 Slashing Weapon 1 | . . . 1 . Piercing Weapon . | . . . . . Special Melee Weapon . | . . . . . Unidentified Prototypes . | . . . . . Parts Lost 12 | . 2 3 2 5 Power 3 | . 1 . 1 1 Propulsion 3 | . . 1 . 2 Utility . | . . . . . Weapon 6 | . 1 2 1 2 Highest Loss Streak 5 | . 1 2 1 5 To Critical Strikes 1 | . . 1 . . Average Slot Usage (%) 86 | . 94 77 74 97 Engine 6 | . 9 . 1 13 Treads 27 | . 28 27 28 27 Storage 14 | . 14 14 14 14 Processor 13 | . 13 14 14 14 Energy Gun 2 | . 6 . . . Ballistic Gun 5 | . 14 . . . Ballistic Cannon 5 | . . 9 11 . Launcher 7 | . 6 11 2 13 Slashing Weapon 2 | . . . 2 13 Naked Turns . | . . . . . Heaviest Build 91 | 11 87 88 90 91 Greatest Support 40 | 40 40 40 40 40 Greatest Overweight (x) 27 | . 2 4 2 27 Average Overweight (x) 1 | . . 2 2 2 Largest Inventory Capacity 25 | 8 25 25 25 25 Average Capacity 22 | 7 19 25 25 25 Most Carried 22 | 5 18 21 22 20 Average Carried 16 | 3 11 19 21 18 Final Capacity 25 | 8 25 25 25 25 Final Carried 20 | 5 18 19 20 18 Class Distribution -------------------- 100% | Mutant Dominant Class ---------------- Mutant | -10/Materials Mutant | -10/Mines Mutant | -10/Subcaves Mutant | -7/Recycling Resources | -11 -10 -10 -10 -7 ----------- Run | Yrd Mat Min Sub Rec Matter Collected 841 | 203 198 68 372 . Remotely . | . . . . . Salvage Created 478 | . 305 128 45 . Parts 33 | . 22 10 1 . Haulers Intercepted 1 | . 1 . . . Recyclers Shooed 1 | . . 1 . . Parts Field Recycled . | . . . . . Retrieved Matter . | . . . . . Parts Self-Destructed 8 | . . . 8 . Prevented . | . . . . . Kills | -11 -10 -10 -10 -7 ------- Run | Yrd Mat Min Sub Rec Combat Hostiles Destroyed 21 | . 12 7 2 . Guns 1 | . 1 . . . Cannons 6 | . . 4 2 . AOE 14 | . 11 3 . . Classes Destroyed 9 | . 6 2 1 . Worker 3 | . 3 . . . Builder 1 | . . 1 . . Hauler 1 | . 1 . . . Recycler 1 | . . 1 . . Operator 1 | . 1 . . . Watcher 2 | . 2 . . . Swarmer 12 | . 6 6 . . Grunt 8 | . 6 1 1 . Subdweller 1 | . . . 1 . Best Kill Streak 5 | . 5 4 1 . Combat Bots Only 3 | . 3 3 1 . Max Kills in Single Turn 3 | . 3 2 1 . Gunslinging . | . . . . . Exploded 2 | . 2 2 . . Melee . | . . . . . Uniques/NPCs Destroyed . | . . . . . Combat | -11 -10 -10 -10 -7 -------- Run | Yrd Mat Min Sub Rec Hostile Shots Fired 216 | . 36 35 10 135 Missed 67 | . 9 11 2 45 Damage Taken 1568 | . 435 241 192 700 Core 252 | . 45 24 . 183 Absorbed by Shields . | . . . . . Core Remaining (%) 100 | 100 . . . . Volleys Fired 65 | . 29 19 17 . Largest 2 | . 2 2 1 . Hottest 74 | . 60 74 44 . Shots Fired 87 | . 42 27 18 . Gun 30 | . 30 . . . Cannon 33 | . . 17 16 . Launcher 24 | . 12 10 2 . Special . | . . . . . Kinetic 51 | . 18 17 16 . Thermal . | . . . . . Explosive 24 | . 12 10 2 . Electromagnetic 12 | . 12 . . . Robot Hit Streak 10 | . 10 5 2 . Robot Miss Streak 3 | . 3 3 3 . Penetration Max . | . . . . . Secondary Targets . | . . . . . Shots Hit Robots 43 | . 23 12 8 . Core Hits 39 | . 26 10 3 . Critical Kills . | . . . . . Critical Parts Destroyed 1 | . 1 . . . Critical Strikes 3 | . 1 1 1 . Destroy 1 | . 1 . . . Blast 2 | . . 1 1 . Melee Attacks 2 | . . . 2 . Impact . | . . . . . Slashing 2 | . . . 2 . Piercing . | . . . . . Sneak Attacks . | . . . . . Combat Hostiles . | . . . . . Follow-up Attacks . | . . . . . Damage Inflicted 1926 | . 1110 619 197 . Guns 192 | . 192 . . . Cannons 437 | . . 321 116 . Explosions 1212 | . 916 296 . . Melee 81 | . . . 81 . Ramming 4 | . 2 2 . . Kinetic 525 | . 88 321 116 . Thermal 108 | . 108 . . . Explosive 1104 | . 808 296 . . Electromagnetic 104 | . 104 . . . Impact . | . . . . . Slashing 81 | . . . 81 . Piercing . | . . . . . Highest Corruption 2 | . 2 2 2 2 Average Corruption 2 | . 2 2 2 2 Corruption Purged . | . . . . . Corruption Blocked . | . . . . . Effects 56 | . 15 8 22 11 Message Errors 16 | . 4 1 7 4 Matter Fused 13 | . 6 1 3 3 Heat Flow Errors 6 | . 2 2 1 1 Energy Discharges 3 | . . . 2 1 Parts Fused 2 | . . 1 1 . Data Loss (minor) 9 | . 2 . 6 1 Data Loss (major) 4 | . 1 2 . 1 Misfires 2 | . . 1 1 . Alerts 1 | . . . 1 . Overload Shots . | . . . . . Overflow Damage 68 | . 31 37 . . Projectiles 36 | . . 36 . . Explosions 32 | . 31 1 . . Melee . | . . . . . Knockbacks 5 | . . 3 2 . Impact . | . . . . . Kinetic 5 | . . 3 2 . Secondary . | . . . . . Self-Inflicted Damage 216 | . 184 32 . . Shots 7 | . 5 2 . . Rammed 1 | . . 1 . . Targets Rammed 2 | . 1 1 . . Kicked . | . . . . . Crushed 1 | . 1 . . . Highest Temperature 252 | . 227 252 107 154 Average Temperature 67 | . 48 103 63 78 Received Heat Transfer 351 | . 60 24 57 210 Siege Activations . | . . . . . Robots Corrupted . | . . . . . Combat Hostiles . | . . . . . Parts Fried . | . . . . . Impact Corruptions . | . . . . . Robots Melted . | . . . . . Combat Hostiles . | . . . . . Parts Melted . | . . . . . Heat Transferred 150 | . 150 . . . Parts Sabotaged . | . . . . . Parts Stolen . | . . . . . Parts Stripped . | . . . . . Power Chain Reactions 2 | . 2 . . . Alert | -11 -10 -10 -10 -7 ------- Run | Yrd Mat Min Sub Rec Peak Influence 365 | . 365 216 . . Initial 98 | . . 98 . . Average 97 | . 143 111 . . Maximum Alert Level 1 | . 1 1 . . Low Security (%) 73 | 100 53 83 . 100 Level 1 26 | . 46 16 . . Level 2 . | . . . . . Level 3 . | . . . . . Level 4 . | . . . . . Level 5 . | . . . . . High Security . | . . . . . Max Security . | . . . . . Squads Dispatched 4 | . 3 1 . . Investigation 2 | . 1 1 . . Extermination . | . . . . . Reinforcement 2 | . 2 . . . Assault . | . . . . . Garrison . | . . . . . Intercept . | . . . . . Searches Triggered . | . . . . . Construction Impeded . | . . . . . Haulers Reinforced . | . . . . . Active Scanning Responses . | . . . . . Cargo Convoy Interrupts . | . . . . . Stealth | -11 -10 -10 -10 -7 --------- Run | Yrd Mat Min Sub Rec Distress Signals . | . . . . . Communications Jammed . | . . . . . Distress Signals . | . . . . . Times Spotted 34 | . 17 7 8 2 Peak Tracking Total 4 | . 4 3 2 2 Tactical Retreats 1 | . 1 . . . Traps | -11 -10 -10 -10 -7 ------- Run | Yrd Mat Min Sub Rec Traps Triggered 2 | . 2 . . . Indirectly . | . . . . . Trap Hack Attempts . | . . . . . Triggered . | . . . . . Disarmed . | . . . . . Reprogrammed . | . . . . . Reused . | . . . . . Traps Extracted . | . . . . . Installed . | . . . . . Triggered . | . . . . . Machines | -11 -10 -10 -10 -7 ---------- Run | Yrd Mat Min Sub Rec Machines Disabled 5 | . 5 . . . Max in Single Turn 3 | . 3 . . . Machines Repaired . | . . . . . Machines Dismantled . | . . . . . Machines Sabotaged . | . . . . . Overloaded Fab Kills . | . . . . . Hacking | -11 -10 -10 -10 -7 --------- Run | Yrd Mat Min Sub Rec Machines Accessed 1 | . . 1 . . Terminals . | . . . . . Fabricators . | . . . . . Repair Stations . | . . . . . Recycling Units . | . . . . . Scanalyzers . | . . . . . Garrison Access . | . . . . . Total Hacks 1 | . . 1 . . Successful 1 | . . 1 . . Failed . | . . . . . Catastrophic . | . . . . . Database Lockouts . | . . . . . Manual . | . . . . . Terminals . | . . . . . Fabricators . | . . . . . Repair Stations . | . . . . . Recycling Units . | . . . . . Scanalyzers . | . . . . . Garrison Access . | . . . . . Terminal Hacks 1 | . . 1 . . Open Door 1 | . . 1 . . Fabricator Hacks . | . . . . . Repair Station Hacks . | . . . . . Recycling Unit Hacks . | . . . . . Scanalyzer . | . . . . . Garrison Access Hacks . | . . . . . Unauthorized Hacks . | . . . . . Terminals . | . . . . . Fabricators . | . . . . . Repair Stations . | . . . . . Recycling Units . | . . . . . Scanalyzers . | . . . . . Garrison Access . | . . . . . Data Cores Recovered . | . . . . . Used . | . . . . . Hacking Detections . | . . . . . Full Trace Events . | . . . . . Feedback Events . | . . . . . Feedback Blocked . | . . . . . Robot Schematics Acquired . | . . . . . Robots Built . | . . . . . Authchips . | . . . . . Time . | . . . . . Total Robot Build Rating . | . . . . . Part Schematics Acquired . | . . . . . Parts Built . | . . . . . Authchips . | . . . . . Time . | . . . . . Total Part Build Rating . | . . . . . Parts Repaired . | . . . . . Time . | . . . . . Parts Recycled . | . . . . . Recycled Matter . | . . . . . Retrieved Matter . | . . . . . Retrieved Components . | . . . . . Parts Scanalyzed . | . . . . . Part Schematics Acquired . | . . . . . Parts Damaged . | . . . . . Bothacking | -11 -10 -10 -10 -7 ------------ Run | Yrd Mat Min Sub Rec Used RIF Installer . | . . . . . Robots Hacked . | . . . . . Non-combat . | . . . . . Combat . | . . . . . Robot Hacks Applied . | . . . . . Relay Couplers Released . | . . . . . Fabnet Peak Effective % . | . . . . . Robots Rewired . | . . . . . Allies Hacked . | . . . . . Hacks Repelled . | . . . . . Allies | -11 -10 -10 -10 -7 -------- Run | Yrd Mat Min Sub Rec Total Allies . | . . . . . Largest Group . | . . . . . Highest-Rated Group . | . . . . . Highest-Rated Ally . | . . . . . Total Orders . | . . . . . Ally Attacks . | . . . . . Total Damage . | . . . . . Kills . | . . . . . Allies Corrupted . | . . . . . Allies Melted . | . . . . . Intel | -11 -10 -10 -10 -7 ------- Run | Yrd Mat Min Sub Rec Robot Analysis Total . | . . . . . Derelict Logs Recovered 1 | . . . 1 . Drone Launches . | . . . . . Drone Recoveries . | . . . . . Exploration | -11 -10 -10 -10 -7 ------------- Run | Yrd Mat Min Sub Rec Turns Passed 4461 | 117 1533 814 1254 743 Spaces Moved 1553 | 63 646 237 379 228 Core 3 | 2 . . . 1 Treads 1550 | 61 646 237 379 227 Legs . | . . . . . Wheels . | . . . . . Hover . | . . . . . Flight . | . . . . . Fastest Speed 50 | 50 160 320 320 320 Average Speed 274 | 156 223 321 320 327 Slowest Speed 1400 | 160 320 480 320 1400 Overloaded Moves . | . . . . . Propulsion Burnouts . | . . . . . Robots Hopped . | . . . . . Cave-ins Triggered . | . . . . . Exploration Rate (%) 43 | 5 95 36 30 51 Regions Visited 4 Branch Regions 3 Pre-discovered Areas 1 | . . 1 . . Known Exits Taken 3 | . 1 1 1 . Unknown Exits Taken 1 | 1 . . . . Scrap Searched 1 | . . . 1 . Spaces Dug . | . . . . . Terrain Destroyed 211 | . 137 64 10 . Melee . | . . . . . Projectile 4 | . . 3 1 . AOE 207 | . 137 61 9 . Terrain Rammed . | . . . . . Walls Destroyed . | . . . . . Machines Disabled . | . . . . . Actions | -11 -10 -10 -10 -7 --------- Run | Yrd Mat Min Sub Rec Total 1672 | 82 695 262 403 230 Wait 3 | 3 . . . . Move 1549 | 62 645 236 378 228 Hop . | . . . . . Pick Up 32 | 11 15 3 3 . Fast Attach . | . . . . . Attach 15 | 6 2 2 3 2 Detach . | . . . . . Swap 3 | . 2 1 . . Drop 1 | . 1 . . . Fire 65 | . 29 19 17 . Melee 2 | . . . 2 . Ram . | . . . . . Kick . | . . . . . Crush 2 | . 1 1 . . Escape Stasis . | . . . . . Rewire . | . . . . . Trap . | . . . . . Miscellaneous . | . . . . . Route ------- -11/Scrapyard -10/Materials (discovered 3 exits: *Mat x2 / *Min) -10/Mines (discovered 2 exits: *Mat / *Sub) -10/Subcaves -7/Recycling (discovered 1 exit: *Fac) History --------- Turn | Location | Event 10 | -11/Scrapyard | Discovered new exit (range 15) 118 | -11/Scrapyard | Entered Materials 206 | -10/Materials | Discovered new exit (range 8) 216 | -10/Materials | Identified exit to Mines 300 | -10/Materials | Build established: Mutant 352 | -10/Materials | Discovered new exit (range 15) 372 | -10/Materials | Identified exit to Materials 1190 | -10/Materials | Discovered exit to Materials (range 16) 1651 | -10/Materials | Entered Mines 1878 | -10/Mines | Met a Derelict shopkeep closing up shop 1971 | -10/Mines | Discovered exit to Materials (range 8) 2039 | -10/Mines | Learned location of Storage (-7) 2445 | -10/Mines | Discovered new exit (range 6) 2461 | -10/Mines | Identified exit to Subcaves 2465 | -10/Mines | Entered Subcaves 3004 | -10/Subcaves | Shifting Twisted Machinery released Riot Gun 3282 | -10/Subcaves | Discovered new exit (range 13) 3285 | -10/Subcaves | Learned Materials emergency access door positions 3327 | -10/Subcaves | Identified exit to Recycling 3719 | -10/Subcaves | Entered Recycling 3720 | -7/Recycling | Joined Warlord attack on 0b10 via Recycling 4005 | -7/Recycling | Discovered new exit (range 16) 4053 | -7/Recycling | Identified exit to Factory 4454 | -7/Recycling | Core integrity fell below 50% 4461 | -7/Recycling | Core integrity fell below 20% 4462 | -7/Recycling | Destroyed by Y-54 Guardian with Flak Gun Last Messages --------------- EXIT=FOUND System corrupted: Matter fused (-10). EXIT=IDENTIFIED: FACTORY KUPGLKBJNIHCVP 3HX4>FLOZU1Z>S0LA7 BGN BT 8>RP>L&%>PJKET#UP5UB9%|FSGS3IT7WO78WO System corrupted: Matter fused (-8). System corrupted: Matter fused (-7). Y1H>C& IRNDKQM%NAS>E System corrupted: Heat flow error (+174). System corrupted: Energy discharge (-82). System corrupted: Substantial component data lost. System corrupted: Component data lost. Y-54 Guardian springs to life. Grenade Launcher destroyed. Mak. Axe destroyed. Lgt. Treads destroyed. Ion Engine destroyed. Lgt. Treads destroyed. Map ----- +----------------------------------------------------+ | | | | | | | | | | | | | | | | | | | | | ??????????????????????????????? | | ??????????????????????????????? | | ??????????????????????????????? | | ??????????????????????????????? | | ??????????????????????????????? | | ??????????????????????????????? | | ??????????????????????????????? | | ????????????????????? [[??????? | | ????????????????????#[[[??????? | | ??????????????????? ????? | | ?????#+#??#+#????? #?? | | ?????# #??# ###### #?? | | ?????# #?? #?? | | ?????# #??# #?? | | ?????# #### #?? | | ?????#@ Y ##? | | ?????# Y +? | | ?????#"" """ """ #? | | ?????#"" """"""""" ??? | | ?????#"T """"" " #????? | | ?????#"" #????? | | ?????#"" #????? | | ?????# #????? | | ?????# #????? | | ?????# #????? | | ?????# ##### ####????? | | ????# #???# #???????? | | ????## #???# #???????? | | ?????# #???# #???????? | | ?????# #???# #???????? | | ?????# #??##+###?????? | | ?????# #??# #?????? | | ?????# ####??# #?????? | | ?????# ??????# #?????? | | ?????? ??????# #??#### | | ???????? ??????# #??# | | ?????????????? ??# #### | | ??????????????# ?# """# | | ??????????????# # "" Y"# | | ????????????????? + "" """# | +----------------------------------------------------+ Best States ------------- Heat Dissipation 25 Energy Generation 15 Energy Capacity 250 Matter Stores 300 Matter Capacity 300 Sight Range 16 Terrain Scan Density 10 Evasion (%) 40 Recoil Reduction 2 Item Schematics ----------------- None Robot Schematics ------------------ None Fabricated ------------ Nothing Alien Tech Used ----------------- None Achievements -------------- Remodeling Challenges ------------ None Game ------ Seed RiotWeightMagmablaster Manual? 0 Play Time 00:27:15 Cumulative 4.8 hours Start 2024.04.01 @ 16:46:39 End 2024.04.01 @ 17:45:54 Sessions 1 Manual Loads 0 Difficulty Rogue Special Mode None Game No. 13 Rogue 13 Adventurer 0 Explorer 0 Win Type - Total 0 Types 0/0/0/0/0/0/0/0/0 Lore% 12 Gallery% 6 Achievement% 7 Wizard Run 0 Options --------- Layout 1 ASCII 0 Keyboard 0 Movement Mouse Keybinds 0 Fullscreen 2 Font 24/Proggy Map View 50x35 Zoom Use 0% Tactical HUD 0 Map Filters NONE Filters NONE Steam 1 RUN: c832894e-c49b-41fd-9461-e2dbc8becf33